[Event "Titled Tuesday Blitz May 24 Late 2022"]
[White "Silva, Pedro Gil Ferreira Da"]
[Black "Adewumi, Tanitoluwa"]
[WhiteFideId "1946102"]
[BlackFideId "30966396"]
[WhiteElo "1863"]
[BlackElo "2513"]
[Result "1/2-1/2"]
[Round "07"]
[TimeControl "180+1"]
[Date "2022.05.25"]
[WhiteClock "0:00:21"]
[BlackClock "0:00:04"]

1. e4 {[%clk 0:03:00]}  c5 {[%clk 0:02:59]} 2. Nf3 {[%clk 0:03:00]}  e6 {[%clk 0:02:59]} 3. d4 {[%clk 0:02:59]}  cxd4 {[%clk 0:03:00]} 4. Nxd4 {[%clk 0:03:00]}  Nc6 {[%clk 0:02:56]} 5. Nc3 {[%clk 0:03:00]}  Qc7 {[%clk 0:02:56]} 6. g3 {[%clk 0:03:01]}  a6 {[%clk 0:02:52]} 7. Bg2 {[%clk 0:03:01]}  d6 {[%clk 0:02:52]} 8. O-O {[%clk 0:03:01]}  Be7 {[%clk 0:02:51]} 9. Re1 {[%clk 0:03:02]}  Bd7 {[%clk 0:02:47]} 10. a4 {[%clk 0:02:45]}  Nf6 {[%clk 0:02:44]} 11. Nb3 {[%clk 0:02:39]}  O-O {[%clk 0:02:43]} 12. f4 {[%clk 0:02:40]}  Rad8 {[%clk 0:02:42]} 13. Be3 {[%clk 0:02:39]}  Be8 {[%clk 0:02:12]} 14. Qe2 {[%clk 0:02:38]}  h5 {[%clk 0:02:03]} 15. Rad1 {[%clk 0:02:37]}  Ng4 {[%clk 0:02:01]} 16. Bc1 {[%clk 0:02:35]}  Na5 {[%clk 0:01:53]} 17. Nxa5 {[%clk 0:02:34]}  Qb6+ {[%clk 0:01:50]} 18. Kh1 {[%clk 0:02:33]}  Qxa5 {[%clk 0:01:20]} 19. h3 {[%clk 0:02:32]}  Nf6 {[%clk 0:01:12]} 20. Be3 {[%clk 0:02:28]}  d5 {[%clk 0:00:57]} 21. exd5 {[%clk 0:02:26]}  exd5 {[%clk 0:00:58]} 22. Bd4 {[%clk 0:02:26]}  Bb4 {[%clk 0:00:18]} 23. Bxf6 {[%clk 0:01:36]}  gxf6 {[%clk 0:00:19]} 24. Qxh5 {[%clk 0:01:36]}  d4 {[%clk 0:00:13]} 25. Qg4+ {[%clk 0:01:21]}  Kh8 {[%clk 0:00:13]} 26. f5 {[%clk 0:00:35]}  dxc3 {[%clk 0:00:01]} 27. Rxd8 {[%clk 0:00:34]}  Qxd8 {[%clk 0:00:02]} 28. Qxb4 {[%clk 0:00:34]}  Bc6 {[%clk 0:00:02]} 29. Qxc3 {[%clk 0:00:27]}  Bxg2+ {[%clk 0:00:02]} 30. Kxg2 {[%clk 0:00:28]}  Qd5+ {[%clk 0:00:02]} 31. Kh2 {[%clk 0:00:28]}  Qxf5 {[%clk 0:00:02]} 32. Re2 {[%clk 0:00:21]}  Kg7 {[%clk 0:00:02]} 33. Qe3 {[%clk 0:00:20]}  Rd8 {[%clk 0:00:02]} 34. Rf2 {[%clk 0:00:20]}  Qg6 {[%clk 0:00:02]} 35. h4 {[%clk 0:00:20]}  Rd5 {[%clk 0:00:02]} 36. Qf4 {[%clk 0:00:20]}  b5 {[%clk 0:00:03]} 37. a5 {[%clk 0:00:19]}  b4 {[%clk 0:00:03]} 38. b3 {[%clk 0:00:19]}  Rb5 {[%clk 0:00:03]} 39. g4 {[%clk 0:00:18]}  Rxa5 {[%clk 0:00:03]} 40. h5 {[%clk 0:00:18]}  Qg5 {[%clk 0:00:03]} 41. Qxg5+ {[%clk 0:00:18]}  Rxg5 {[%clk 0:00:03]} 42. Kg3 {[%clk 0:00:19]}  a5 {[%clk 0:00:04]} 43. Kh4 {[%clk 0:00:18]}  Rc5 {[%clk 0:00:03]} 44. h6+ {[%clk 0:00:18]}  Kg6 {[%clk 0:00:03]} 45. h7 {[%clk 0:00:18]}  Rc8 {[%clk 0:00:03]} 46. Kg3 {[%clk 0:00:17]}  Rh8 {[%clk 0:00:03]} 47. Rf5 {[%clk 0:00:18]}  Kxh7 {[%clk 0:00:03]} 48. Rxa5 {[%clk 0:00:17]}  Rc8 {[%clk 0:00:03]} 49. Rb5 {[%clk 0:00:17]}  Rc3+ {[%clk 0:00:03]} 50. Kf4 {[%clk 0:00:17]}  Rxc2 {[%clk 0:00:03]} 51. Rxb4 {[%clk 0:00:18]}  Kg6 {[%clk 0:00:03]} 52. Rb5 {[%clk 0:00:18]}  Rc3 {[%clk 0:00:04]} 53. b4 {[%clk 0:00:19]}  Rc4+ {[%clk 0:00:04]} 54. Kf3 {[%clk 0:00:19]}  Rc3+ {[%clk 0:00:05]} 55. Kf4 {[%clk 0:00:20]}  Rc4+ {[%clk 0:00:05]} 56. Kg3 {[%clk 0:00:20]}  Rc3+ {[%clk 0:00:06]} 57. Kh4 {[%clk 0:00:21]}  Rc2 {[%clk 0:00:06]} 58. Rf5 {[%clk 0:00:20]}  Rc4 {[%clk 0:00:06]} 59. b5 {[%clk 0:00:20]}  Rb4 {[%clk 0:00:07]} 60. Rc5 {[%clk 0:00:19]}  Ra4 {[%clk 0:00:07]} 61. b6 {[%clk 0:00:19]}  Rb4 {[%clk 0:00:07]} 62. Rc6 {[%clk 0:00:20]}  Ra4 {[%clk 0:00:08]} 63. Kg3 {[%clk 0:00:20]}  Rb4 {[%clk 0:00:08]} 64. Rd6 {[%clk 0:00:20]}  Rb3+ {[%clk 0:00:08]} 65. Kf4 {[%clk 0:00:20]}  Rb4+ {[%clk 0:00:09]} 66. Ke3 {[%clk 0:00:20]}  Kg5 {[%clk 0:00:09]} 67. Kd3 {[%clk 0:00:19]}  Rxg4 {[%clk 0:00:08]} 68. b7 {[%clk 0:00:19]}  Rb4 {[%clk 0:00:08]} 69. Rd7 {[%clk 0:00:19]}  Kg6 {[%clk 0:00:07]} 70. Kc3 {[%clk 0:00:20]}  Rb6 {[%clk 0:00:07]} 71. Kc4 {[%clk 0:00:20]}  f5 {[%clk 0:00:08]} 72. Kc5 {[%clk 0:00:20]}  Rb1 {[%clk 0:00:08]} 73. Kc6 {[%clk 0:00:21]}  f4 {[%clk 0:00:09]} 74. Rd6+ {[%clk 0:00:21]}  Kg5 {[%clk 0:00:09]} 75. Rd5+ {[%clk 0:00:21]}  Kg4 {[%clk 0:00:09]} 76. Rb5 {[%clk 0:00:22]}  Rc1+ {[%clk 0:00:09]} 77. Kd6 {[%clk 0:00:22]}  Rd1+ {[%clk 0:00:07]} 78. Ke5 {[%clk 0:00:22]}  Rd8 {[%clk 0:00:07]} 79. b8=Q {[%clk 0:00:23]}  Rxb8 {[%clk 0:00:08]} 80. Rxb8 {[%clk 0:00:23]}  f3 {[%clk 0:00:09]} 81. Rg8+ {[%clk 0:00:22]}  Kh3 {[%clk 0:00:08]} 82. Kf4 {[%clk 0:00:22]}  f2 {[%clk 0:00:08]} 83. Rh8+ {[%clk 0:00:20]}  Kg2 {[%clk 0:00:09]} 84. Rg8+ {[%clk 0:00:21]}  Kh2 {[%clk 0:00:07]} 85. Rh8+ {[%clk 0:00:21]}  Kg2 {[%clk 0:00:07]} 86. Rg8+ {[%clk 0:00:22]}  Kh3 {[%clk 0:00:02]} 87. Rg3+ {[%clk 0:00:20]}  Kh2 {[%clk 0:00:02]} 88. Rf3 {[%clk 0:00:21]}  Kg2 {[%clk 0:00:03]} 89. Rg3+ {[%clk 0:00:19]}  Kh2 {[%clk 0:00:03]} 90. Rf3 {[%clk 0:00:19]}  Kg1 {[%clk 0:00:04]} 91. Rg3+ {[%clk 0:00:18]}  Kh1 {[%clk 0:00:02]} 92. Rf3 {[%clk 0:00:18]}  Kg2 {[%clk 0:00:03]} 93. Rg3+ {[%clk 0:00:18]}  Kf1 {[%clk 0:00:01]} 94. Ke3 {[%clk 0:00:18]}  Ke1 {[%clk 0:00:02]} 95. Rf3 {[%clk 0:00:17]}  f1=Q {[%clk 0:00:02]} 96. Rxf1+ {[%clk 0:00:18]}  Kxf1 {[%clk 0:00:03]} 97. Kf4 {[%clk 0:00:18]}  Kf2 {[%clk 0:00:02]} 98. Kf5 {[%clk 0:00:19]}  Ke2 {[%clk 0:00:03]} 99. Kf6 {[%clk 0:00:20]}  Kf2 {[%clk 0:00:04]} 100. Kxf7 {[%clk 0:00:21]} 1/2-1/2


[Site "https://www.chess.com"]

[Event "Titled Tuesday Blitz May 24 Late 2022"]
[White "Sjugirov, Sanan"]
[Black "Bryakin, Mikhail"]
[WhiteFideId "4189302"]
[BlackFideId "4165314"]
[WhiteElo "2602"]
[BlackElo "2417"]
[Result "1/2-1/2"]
[Round "07"]
[TimeControl "180+1"]
[Date "2022.05.24"]
[WhiteClock "0:00:02"]
[BlackClock "0:00:05"]

1. e4 {[%clk 0:03:00]}  c5 {[%clk 0:03:00]} 2. Nc3 {[%clk 0:03:00]}  Nc6 {[%clk 0:02:57]} 3. Nge2 {[%clk 0:03:00]}  g6 {[%clk 0:02:56]} 4. d4 {[%clk 0:03:00]}  cxd4 {[%clk 0:02:56]} 5. Nxd4 {[%clk 0:03:01]}  Bg7 {[%clk 0:02:56]} 6. Be3 {[%clk 0:03:01]}  Nf6 {[%clk 0:02:57]} 7. Bc4 {[%clk 0:03:01]}  O-O {[%clk 0:02:57]} 8. Bb3 {[%clk 0:03:01]}  Na5 {[%clk 0:02:52]} 9. O-O {[%clk 0:02:58]}  Nxb3 {[%clk 0:02:52]} 10. axb3 {[%clk 0:02:59]}  d6 {[%clk 0:02:49]} 11. h3 {[%clk 0:02:58]}  Bd7 {[%clk 0:02:48]} 12. f4 {[%clk 0:02:56]}  a6 {[%clk 0:02:47]} 13. Qd3 {[%clk 0:02:51]}  Rc8 {[%clk 0:02:47]} 14. Rad1 {[%clk 0:02:46]}  Ne8 {[%clk 0:02:45]} 15. Kh1 {[%clk 0:02:40]}  Nc7 {[%clk 0:02:46]} 16. f5 {[%clk 0:02:39]}  Nb5 {[%clk 0:02:31]} 17. Ndxb5 {[%clk 0:02:30]}  axb5 {[%clk 0:02:32]} 18. Nd5 {[%clk 0:02:26]}  Bc6 {[%clk 0:02:27]} 19. c3 {[%clk 0:01:33]}  Bxd5 {[%clk 0:01:46]} 20. exd5 {[%clk 0:01:34]}  Qd7 {[%clk 0:01:47]} 21. Rde1 {[%clk 0:01:29]}  Rfe8 {[%clk 0:01:30]} 22. Bd4 {[%clk 0:01:26]}  Bf6 {[%clk 0:01:13]} 23. Rf3 {[%clk 0:01:21]}  Kg7 {[%clk 0:01:00]} 24. Ref1 {[%clk 0:01:20]}  Bxd4 {[%clk 0:00:58]} 25. Qxd4+ {[%clk 0:01:19]}  f6 {[%clk 0:00:59]} 26. Re3 {[%clk 0:01:09]}  Rf8 {[%clk 0:00:48]} 27. Re6 {[%clk 0:01:07]}  g5 {[%clk 0:00:42]} 28. Rfe1 {[%clk 0:01:07]}  Rf7 {[%clk 0:00:43]} 29. R1e4 {[%clk 0:01:05]}  Ra8 {[%clk 0:00:41]} 30. Kh2 {[%clk 0:01:04]}  Ra2 {[%clk 0:00:36]} 31. Re2 {[%clk 0:01:04]}  Ra1 {[%clk 0:00:30]} 32. Qe3 {[%clk 0:00:52]}  Kf8 {[%clk 0:00:31]} 33. c4 {[%clk 0:00:47]}  Rf1 {[%clk 0:00:25]} 34. Qd3 {[%clk 0:00:40]}  Rf4 {[%clk 0:00:20]} 35. g3 {[%clk 0:00:13]}  Rf1 {[%clk 0:00:20]} 36. c5 {[%clk 0:00:13]}  dxc5 {[%clk 0:00:16]} 37. d6 {[%clk 0:00:14]}  exd6 {[%clk 0:00:16]} 38. Rxd6 {[%clk 0:00:14]}  Qc7 {[%clk 0:00:14]} 39. Qd5 {[%clk 0:00:11]}  Kg7 {[%clk 0:00:13]} 40. Rd8 {[%clk 0:00:04]}  Rxf5 {[%clk 0:00:11]} 41. Qd2 {[%clk 0:00:02]}  Re5 {[%clk 0:00:10]} 42. Rf2 {[%clk 0:00:02]}  Qe7 {[%clk 0:00:08]} 43. Rd3 {[%clk 0:00:02]}  c4 {[%clk 0:00:09]} 44. bxc4 {[%clk 0:00:01]}  bxc4 {[%clk 0:00:10]} 45. Rdf3 {[%clk 0:00:01]}  b5 {[%clk 0:00:09]} 46. Qd4 {[%clk 0:00:01]}  h6 {[%clk 0:00:09]} 47. Qg4 {[%clk 0:00:01]}  Re4 {[%clk 0:00:09]} 48. Qf5 {[%clk 0:00:02]}  Qe5 {[%clk 0:00:10]} 49. Qc8 {[%clk 0:00:02]}  Re3 {[%clk 0:00:10]} 50. Rxe3 {[%clk 0:00:01]}  Qxe3 {[%clk 0:00:10]} 51. Rg2 {[%clk 0:00:01]}  Qe5 {[%clk 0:00:11]} 52. Qc6 {[%clk 0:00:02]}  Re7 {[%clk 0:00:11]} 53. Qf3 {[%clk 0:00:03]}  h5 {[%clk 0:00:11]} 54. Qxh5 {[%clk 0:00:03]}  Qe4 {[%clk 0:00:12]} 55. h4 {[%clk 0:00:03]}  Qg6 {[%clk 0:00:11]} 56. Qg4 {[%clk 0:00:03]}  Qe4 {[%clk 0:00:11]} 57. Qh5 {[%clk 0:00:03]}  Qg6 {[%clk 0:00:11]} 58. Qg4 {[%clk 0:00:03]}  Re4 {[%clk 0:00:12]} 59. Qd7+ {[%clk 0:00:03]}  Qf7 {[%clk 0:00:12]} 60. Qxb5 {[%clk 0:00:02]}  Re5 {[%clk 0:00:11]} 61. Qc6 {[%clk 0:00:02]}  Qe6 {[%clk 0:00:08]} 62. Qc7+ {[%clk 0:00:02]}  Qf7 {[%clk 0:00:08]} 63. Qd6 {[%clk 0:00:02]}  Qe6 {[%clk 0:00:08]} 64. Qc7+ {[%clk 0:00:02]}  Qf7 {[%clk 0:00:09]} 65. Qc6 {[%clk 0:00:03]}  Qe6 {[%clk 0:00:09]} 66. Qb7+ {[%clk 0:00:03]}  Qf7 {[%clk 0:00:09]} 67. Qf3 {[%clk 0:00:04]}  Qd5 {[%clk 0:00:09]} 68. Qg4 {[%clk 0:00:03]}  Qe6 {[%clk 0:00:09]} 69. Qd4 {[%clk 0:00:03]}  Re4 {[%clk 0:00:08]} 70. Qa7+ {[%clk 0:00:03]}  Qe7 {[%clk 0:00:08]} 71. Qf2 {[%clk 0:00:04]}  Qe5 {[%clk 0:00:07]} 72. Qa7+ {[%clk 0:00:03]}  Qe7 {[%clk 0:00:07]} 73. Qb6 {[%clk 0:00:03]}  Qe6 {[%clk 0:00:05]} 74. Qb7+ {[%clk 0:00:03]}  Qe7 {[%clk 0:00:05]} 75. Qd5 {[%clk 0:00:03]}  Qe5 {[%clk 0:00:06]} 76. Qd7+ {[%clk 0:00:02]}  Qe7 {[%clk 0:00:06]} 77. Qf5 {[%clk 0:00:03]}  Qe5 {[%clk 0:00:06]} 78. Qd7+ {[%clk 0:00:02]}  Qe7 {[%clk 0:00:06]} 79. Qc6 {[%clk 0:00:02]}  Qe6 {[%clk 0:00:05]} 80. Qc5 {[%clk 0:00:02]}  Qe5 {[%clk 0:00:05]} 81. Qa7+ {[%clk 0:00:02]}  Qe7 {[%clk 0:00:05]} 1/2-1/2


[Site "https://www.chess.com"]

[Event "Titled Tuesday Blitz May 24 Late 2022"]
[White "Skytte, Rasmus"]
[Black "Vivas Zamora, Fabian Ernesto"]
[WhiteFideId "1404210"]
[BlackFideId "3902480"]
[WhiteElo "2430"]
[BlackElo "1987"]
[Result "1-0"]
[Round "07"]
[TimeControl "180+1"]
[Date "2022.05.25"]
[WhiteClock "0:00:45"]
[BlackClock "0:00:01"]

1. d4 {[%clk 0:02:57]}  Nf6 {[%clk 0:02:55]} 2. c4 {[%clk 0:02:55]}  g6 {[%clk 0:02:55]} 3. Nc3 {[%clk 0:02:55]}  d5 {[%clk 0:02:55]} 4. Bf4 {[%clk 0:02:52]}  Bg7 {[%clk 0:02:55]} 5. e3 {[%clk 0:02:52]}  c5 {[%clk 0:02:53]} 6. dxc5 {[%clk 0:02:46]}  Qa5 {[%clk 0:02:49]} 7. Rc1 {[%clk 0:02:41]}  dxc4 {[%clk 0:02:34]} 8. Bxc4 {[%clk 0:02:39]}  O-O {[%clk 0:02:34]} 9. Nf3 {[%clk 0:02:37]}  Qxc5 {[%clk 0:02:29]} 10. Bb3 {[%clk 0:02:35]}  Nc6 {[%clk 0:02:22]} 11. O-O {[%clk 0:02:34]}  Rd8 {[%clk 0:02:17]} 12. Qe2 {[%clk 0:02:32]}  Qa5 {[%clk 0:02:15]} 13. h3 {[%clk 0:02:30]}  h6 {[%clk 0:02:10]} 14. e4 {[%clk 0:02:29]}  Nh5 {[%clk 0:02:02]} 15. Be3 {[%clk 0:02:28]}  e5 {[%clk 0:01:56]} 16. Nd5 {[%clk 0:02:23]}  Be6 {[%clk 0:01:55]} 17. Rfd1 {[%clk 0:02:18]}  Rac8 {[%clk 0:01:21]} 18. Rxc6 {[%clk 0:02:06]}  bxc6 {[%clk 0:01:07]} 19. Ne7+ {[%clk 0:02:04]}  Kh7 {[%clk 0:01:05]} 20. Bxe6 {[%clk 0:02:01]}  Rxd1+ {[%clk 0:01:03]} 21. Qxd1 {[%clk 0:01:57]}  Rd8 {[%clk 0:01:01]} 22. Bd7 {[%clk 0:01:50]}  Qc7 {[%clk 0:00:56]} 23. Nxc6 {[%clk 0:01:31]}  Rxd7 {[%clk 0:00:54]} 24. Qa4 {[%clk 0:01:29]}  Nf4 {[%clk 0:00:37]} 25. Bxf4 {[%clk 0:01:18]}  exf4 {[%clk 0:00:36]} 26. e5 {[%clk 0:01:18]}  Rd5 {[%clk 0:00:22]} 27. b4 {[%clk 0:01:13]}  Qd7 {[%clk 0:00:11]} 28. b5 {[%clk 0:01:08]}  Rd1+ {[%clk 0:00:03]} 29. Kh2 {[%clk 0:01:08]}  g5 {[%clk 0:00:04]} 30. Qe4+ {[%clk 0:01:04]}  Kh8 {[%clk 0:00:03]} 31. a4 {[%clk 0:00:59]}  Qd3 {[%clk 0:00:03]} 32. Qxd3 {[%clk 0:00:52]}  Rxd3 {[%clk 0:00:04]} 33. Nxa7 {[%clk 0:00:52]}  Ra3 {[%clk 0:00:04]} 34. b6 {[%clk 0:00:50]}  Rxa4 {[%clk 0:00:04]} 35. Nc6 {[%clk 0:00:50]}  Ra2 {[%clk 0:00:01]} 36. b7 {[%clk 0:00:49]}  Rb2 {[%clk 0:00:01]} 37. b8=Q+ {[%clk 0:00:49]}  Rxb8 {[%clk 0:00:02]} 38. Nxb8 {[%clk 0:00:49]}  Kh7 {[%clk 0:00:02]} 39. Nc6 {[%clk 0:00:48]}  Kg6 {[%clk 0:00:03]} 40. Ne7+ {[%clk 0:00:47]}  Kh5 {[%clk 0:00:01]} 41. g4+ {[%clk 0:00:46]}  fxg3+ {[%clk 0:00:01]} 42. fxg3 {[%clk 0:00:45]} 1-0


[Site "https://www.chess.com"]

[Event "Titled Tuesday Blitz May 24 Late 2022"]
[White "Stanisz, Patryk"]
[Black "Remolar Gallen, Jose"]
[WhiteFideId "1123106"]
[BlackFideId "2215187"]
[WhiteElo "1833"]
[BlackElo "2205"]
[Result "1-0"]
[Round "07"]
[TimeControl "180+1"]
[Date "2022.05.25"]
[WhiteClock "0:02:09"]
[BlackClock "0:01:20"]

1. d4 {[%clk 0:03:00]}  d5 {[%clk 0:02:57]} 2. c4 {[%clk 0:03:01]}  c6 {[%clk 0:02:56]} 3. Nc3 {[%clk 0:03:02]}  Nf6 {[%clk 0:02:56]} 4. Nf3 {[%clk 0:03:03]}  e6 {[%clk 0:02:57]} 5. e3 {[%clk 0:03:03]}  Nbd7 {[%clk 0:02:56]} 6. Qc2 {[%clk 0:03:03]}  Be7 {[%clk 0:02:41]} 7. Bd2 {[%clk 0:03:00]}  O-O {[%clk 0:02:36]} 8. Rd1 {[%clk 0:02:58]}  h6 {[%clk 0:02:34]} 9. h3 {[%clk 0:02:57]}  Qc7 {[%clk 0:02:31]} 10. a3 {[%clk 0:02:51]}  e5 {[%clk 0:02:30]} 11. cxd5 {[%clk 0:02:51]}  cxd5 {[%clk 0:02:28]} 12. dxe5 {[%clk 0:02:48]}  Nxe5 {[%clk 0:02:27]} 13. Be2 {[%clk 0:02:41]}  Ne4 {[%clk 0:02:04]} 14. Rc1 {[%clk 0:02:29]}  Nxd2 {[%clk 0:01:49]} 15. Qxd2 {[%clk 0:02:17]}  Qa5 {[%clk 0:01:26]} 16. Nxe5 {[%clk 0:02:11]}  d4 {[%clk 0:01:20]} 17. exd4 {[%clk 0:02:09]} 1-0


[Site "https://www.chess.com"]

[Event "Titled Tuesday Blitz May 24 Late 2022"]
[White "Stevens, Christian"]
[Black "Bonte, Andrei-Mihai"]
[WhiteFideId "2604450"]
[BlackFideId "1210297"]
[WhiteElo "2547"]
[BlackElo "2192"]
[Result "1/2-1/2"]
[Round "07"]
[TimeControl "180+1"]
[Date "2022.05.25"]
[WhiteClock "0:00:16"]
[BlackClock "0:00:17"]

1. Nf3 {[%clk 0:03:00]}  c6 {[%clk 0:02:59]} 2. c4 {[%clk 0:03:01]}  d5 {[%clk 0:03:00]} 3. e3 {[%clk 0:02:59]}  Nf6 {[%clk 0:02:59]} 4. Nc3 {[%clk 0:02:59]}  Bg4 {[%clk 0:02:58]} 5. Qb3 {[%clk 0:02:58]}  Qb6 {[%clk 0:02:56]} 6. cxd5 {[%clk 0:02:58]}  Qxb3 {[%clk 0:02:51]} 7. axb3 {[%clk 0:02:59]}  Nxd5 {[%clk 0:02:49]} 8. Nxd5 {[%clk 0:02:55]}  cxd5 {[%clk 0:02:45]} 9. Ne5 {[%clk 0:02:56]}  Bd7 {[%clk 0:02:44]} 10. Nxd7 {[%clk 0:02:54]}  Kxd7 {[%clk 0:02:33]} 11. d4 {[%clk 0:02:54]}  e6 {[%clk 0:02:32]} 12. Bd2 {[%clk 0:02:55]}  Nc6 {[%clk 0:02:30]} 13. Bb5 {[%clk 0:02:50]}  Bd6 {[%clk 0:02:26]} 14. Ke2 {[%clk 0:02:50]}  a6 {[%clk 0:02:25]} 15. Bd3 {[%clk 0:02:48]}  g6 {[%clk 0:02:09]} 16. Rhc1 {[%clk 0:02:48]}  h5 {[%clk 0:02:05]} 17. Ra4 {[%clk 0:02:48]}  Bxh2 {[%clk 0:01:43]} 18. g3 {[%clk 0:02:48]}  h4 {[%clk 0:01:43]} 19. Kf3 {[%clk 0:02:48]}  hxg3 {[%clk 0:01:22]} 20. fxg3 {[%clk 0:02:49]}  f5 {[%clk 0:01:21]} 21. Kg2 {[%clk 0:02:45]}  Rh7 {[%clk 0:01:19]} 22. Rh1 {[%clk 0:02:45]}  Rah8 {[%clk 0:01:19]} 23. b4 {[%clk 0:02:44]}  Rh3 {[%clk 0:01:02]} 24. Be1 {[%clk 0:02:42]}  Na7 {[%clk 0:00:49]} 25. Bf1 {[%clk 0:02:37]}  g5 {[%clk 0:00:45]} 26. Kf3 {[%clk 0:02:12]}  g4+ {[%clk 0:00:35]} 27. Kg2 {[%clk 0:02:12]}  Nb5 {[%clk 0:00:34]} 28. Bxb5+ {[%clk 0:01:59]}  axb5 {[%clk 0:00:35]} 29. Ra3 {[%clk 0:01:51]}  R3h7 {[%clk 0:00:19]} 30. Rc3 {[%clk 0:01:48]}  Rh3 {[%clk 0:00:18]} 31. Rc5 {[%clk 0:01:45]}  Bxg3 {[%clk 0:00:17]} 32. Bxg3 {[%clk 0:01:44]}  Rxh1 {[%clk 0:00:16]} 33. Rc7+ {[%clk 0:01:43]}  Kd8 {[%clk 0:00:16]} 34. Rxb7 {[%clk 0:01:43]}  Rb1 {[%clk 0:00:15]} 35. Rb8+ {[%clk 0:01:42]}  Kd7 {[%clk 0:00:16]} 36. Rxh8 {[%clk 0:01:43]}  Rxb2+ {[%clk 0:00:16]} 37. Bf2 {[%clk 0:01:41]}  Rxb4 {[%clk 0:00:16]} 38. Kg3 {[%clk 0:01:37]}  Rb2 {[%clk 0:00:13]} 39. Ra8 {[%clk 0:01:18]}  b4 {[%clk 0:00:12]} 40. Ra6 {[%clk 0:01:18]}  b3 {[%clk 0:00:12]} 41. Rb6 {[%clk 0:01:18]}  Kc7 {[%clk 0:00:09]} 42. Rb4 {[%clk 0:01:18]}  Kc6 {[%clk 0:00:09]} 43. Kg2 {[%clk 0:01:17]}  Kc7 {[%clk 0:00:08]} 44. Kf1 {[%clk 0:01:16]}  Kc6 {[%clk 0:00:08]} 45. Bg3 {[%clk 0:01:14]}  Rb1+ {[%clk 0:00:07]} 46. Ke2 {[%clk 0:01:09]}  b2 {[%clk 0:00:06]} 47. Be1 {[%clk 0:01:03]}  g3 {[%clk 0:00:06]} 48. Bxg3 {[%clk 0:00:57]}  Rg1 {[%clk 0:00:06]} 49. Rxb2 {[%clk 0:00:56]}  Rxg3 {[%clk 0:00:06]} 50. Kf2 {[%clk 0:00:57]}  Rg4 {[%clk 0:00:06]} 51. Kf3 {[%clk 0:00:57]}  Kd6 {[%clk 0:00:07]} 52. Rb8 {[%clk 0:00:56]}  Ke7 {[%clk 0:00:07]} 53. Rh8 {[%clk 0:00:54]}  Kf7 {[%clk 0:00:08]} 54. Rh6 {[%clk 0:00:53]}  Rg6 {[%clk 0:00:08]} 55. Rh1 {[%clk 0:00:53]}  Rg7 {[%clk 0:00:09]} 56. Kf4 {[%clk 0:00:50]}  Kf6 {[%clk 0:00:10]} 57. Rh6+ {[%clk 0:00:49]}  Rg6 {[%clk 0:00:11]} 58. Rh8 {[%clk 0:00:47]}  Rg4+ {[%clk 0:00:11]} 59. Kf3 {[%clk 0:00:47]}  Re4 {[%clk 0:00:12]} 60. Rh6+ {[%clk 0:00:44]}  Kg5 {[%clk 0:00:12]} 61. Rh8 {[%clk 0:00:43]}  f4 {[%clk 0:00:12]} 62. Rg8+ {[%clk 0:00:43]}  Kh6 {[%clk 0:00:10]} 63. exf4 {[%clk 0:00:40]}  Rxd4 {[%clk 0:00:11]} 64. Re8 {[%clk 0:00:39]}  Re4 {[%clk 0:00:10]} 65. Kg4 {[%clk 0:00:38]}  Kg6 {[%clk 0:00:11]} 66. Kf3 {[%clk 0:00:35]}  Kf6 {[%clk 0:00:10]} 67. Rf8+ {[%clk 0:00:35]}  Ke7 {[%clk 0:00:10]} 68. Ra8 {[%clk 0:00:35]}  Kd6 {[%clk 0:00:10]} 69. Ra6+ {[%clk 0:00:35]}  Ke7 {[%clk 0:00:11]} 70. Ra7+ {[%clk 0:00:35]}  Kf6 {[%clk 0:00:11]} 71. Ra8 {[%clk 0:00:35]}  Rb4 {[%clk 0:00:12]} 72. Rf8+ {[%clk 0:00:33]}  Ke7 {[%clk 0:00:12]} 73. Ra8 {[%clk 0:00:32]}  Rb3+ {[%clk 0:00:11]} 74. Kg4 {[%clk 0:00:31]}  Rb1 {[%clk 0:00:11]} 75. Kf3 {[%clk 0:00:30]}  Rh1 {[%clk 0:00:11]} 76. Kg4 {[%clk 0:00:28]}  Rg1+ {[%clk 0:00:10]} 77. Kf3 {[%clk 0:00:27]}  Rf1+ {[%clk 0:00:11]} 78. Ke3 {[%clk 0:00:27]}  Re1+ {[%clk 0:00:10]} 79. Kf3 {[%clk 0:00:27]}  Rf1+ {[%clk 0:00:10]} 80. Ke3 {[%clk 0:00:26]}  Kf6 {[%clk 0:00:11]} 81. Rf8+ {[%clk 0:00:24]}  Kg6 {[%clk 0:00:11]} 82. Ra8 {[%clk 0:00:25]}  Kf5 {[%clk 0:00:11]} 83. Rf8+ {[%clk 0:00:25]}  Kg6 {[%clk 0:00:11]} 84. Re8 {[%clk 0:00:24]}  Kf7 {[%clk 0:00:11]} 85. Ra8 {[%clk 0:00:24]}  Rh1 {[%clk 0:00:11]} 86. Kf3 {[%clk 0:00:22]}  Rh3+ {[%clk 0:00:10]} 87. Kg4 {[%clk 0:00:22]}  Rb3 {[%clk 0:00:10]} 88. Kg5 {[%clk 0:00:21]}  Rg3+ {[%clk 0:00:08]} 89. Kh4 {[%clk 0:00:20]}  Rg1 {[%clk 0:00:08]} 90. Kh3 {[%clk 0:00:19]}  Kf6 {[%clk 0:00:07]} 91. Kh2 {[%clk 0:00:18]}  Rg7 {[%clk 0:00:05]} 92. Rf8+ {[%clk 0:00:15]}  Kg6 {[%clk 0:00:05]} 93. Kg3 {[%clk 0:00:14]}  Rf7 {[%clk 0:00:03]} 94. Ra8 {[%clk 0:00:13]}  Kf6 {[%clk 0:00:04]} 95. Kg4 {[%clk 0:00:12]}  Rh7 {[%clk 0:00:04]} 96. Rf8+ {[%clk 0:00:10]}  Rf7 {[%clk 0:00:04]} 97. Ra8 {[%clk 0:00:10]}  Ke7 {[%clk 0:00:04]} 98. Ra7+ {[%clk 0:00:09]}  Kf8 {[%clk 0:00:05]} 99. Ra8+ {[%clk 0:00:10]}  Kg7 {[%clk 0:00:05]} 100. Re8 {[%clk 0:00:10]}  d4 {[%clk 0:00:06]} 101. Rxe6 {[%clk 0:00:09]}  Rd7 {[%clk 0:00:06]} 102. Re1 {[%clk 0:00:09]}  d3 {[%clk 0:00:07]} 103. Rd1 {[%clk 0:00:08]}  d2 {[%clk 0:00:08]} 104. Kf5 {[%clk 0:00:06]}  Kf7 {[%clk 0:00:07]} 105. Ke5 {[%clk 0:00:06]}  Rd8 {[%clk 0:00:08]} 106. Ke4 {[%clk 0:00:05]}  Rd7 {[%clk 0:00:09]} 107. Ke3 {[%clk 0:00:04]}  Kf6 {[%clk 0:00:10]} 108. Rxd2 {[%clk 0:00:04]}  Rxd2 {[%clk 0:00:11]} 109. Kxd2 {[%clk 0:00:04]}  Kf5 {[%clk 0:00:12]} 110. Ke3 {[%clk 0:00:04]}  Kf6 {[%clk 0:00:13]} 111. Ke4 {[%clk 0:00:05]}  Ke6 {[%clk 0:00:13]} 112. Ke3 {[%clk 0:00:05]}  Kf6 {[%clk 0:00:14]} 113. Kf3 {[%clk 0:00:06]}  Kf5 {[%clk 0:00:14]} 114. Kg3 {[%clk 0:00:05]}  Kf6 {[%clk 0:00:15]} 115. Kg4 {[%clk 0:00:06]}  Kg6 {[%clk 0:00:15]} 116. f5+ {[%clk 0:00:07]}  Kf6 {[%clk 0:00:16]} 117. Kf4 {[%clk 0:00:07]}  Kf7 {[%clk 0:00:16]} 118. Ke5 {[%clk 0:00:08]}  Ke7 {[%clk 0:00:16]} 119. f6+ {[%clk 0:00:09]}  Kf7 {[%clk 0:00:17]} 120. Kf5 {[%clk 0:00:09]}  Kf8 {[%clk 0:00:17]} 121. Kg6 {[%clk 0:00:10]}  Kg8 {[%clk 0:00:18]} 122. Kf5 {[%clk 0:00:11]}  Kf7 {[%clk 0:00:18]} 123. Ke5 {[%clk 0:00:10]}  Kf8 {[%clk 0:00:18]} 124. Ke6 {[%clk 0:00:11]}  Ke8 {[%clk 0:00:18]} 125. Kf5 {[%clk 0:00:12]}  Kf7 {[%clk 0:00:18]} 126. Kg5 {[%clk 0:00:13]}  Kf8 {[%clk 0:00:17]} 127. Kg6 {[%clk 0:00:14]}  Kg8 {[%clk 0:00:17]} 128. Kh5 {[%clk 0:00:14]}  Kf7 {[%clk 0:00:17]} 129. Kg5 {[%clk 0:00:15]}  Kf8 {[%clk 0:00:17]} 130. Kf5 {[%clk 0:00:16]}  Kf7 {[%clk 0:00:17]} 1/2-1/2


[Site "https://www.chess.com"]